fUST/lending_fUST_20240314
["ID","MTS","AMOUNT","RATE_DAILY","PERIOD"]
[318679613,1710346231942,-795.9915189,0.00018108,2]
[318679614,1710346231952,-246.444181,0.00018158,2]
[318679615,1710346231961,-24900.0,0.00018185,2]
[318679616,1710346231971,-1498.8773728,0.00018187,2]
[318679617,1710346231981,-524.47289489,0.00018391,2]
[318679618,1710346231990,-1654.84504179,0.0001868,2]
[318679619,1710346232000,-425.78807839,0.000189,2]
[318679621,1710346232010,-802.0,0.00019,2]
[318679622,1710346232020,-166.666666,0.00019178,2]
[318679624,1710346232029,-227.3235491,0.00019305,2]
[318679625,1710346232039,-626.17197069,0.0001939,2]
[318679627,1710346232048,-204.80125661,0.00019391,2]
[318679629,1710346232058,-155.11323266,0.00019392,2]
[318679631,1710346232067,-402.89113833,0.00019401,2]
[318679633,1710346232076,-180.49490109,0.00019402,2]
[318679634,1710346232086,-500.0,0.00019402,2]
[318679635,1710346232096,-500.0,0.00019402,2]
[318679637,1710346232105,-500.0,0.00019402,2]
[318679638,1710346232115,-500.0,0.00019402,2]
[318679639,1710346232124,-559.14,0.00019402,2]
[318679640,1710346232135,-500.0,0.00019402,2]
[318679641,1710346232145,-151.0,0.00019403,2]
[318679642,1710346232156,-151.0,0.00019403,2]
[318679643,1710346232165,-151.0,0.00019403,2]
[318679644,1710346232175,-151.0,0.00019403,2]
[318679645,1710346232184,-151.0,0.00019403,2]
[318679646,1710346232194,-151.0,0.00019403,2]
[318679647,1710346232204,-151.0,0.00019403,2]
[318679648,1710346232214,-151.0,0.00019403,2]
[318679649,1710346232224,-151.0,0.00019403,2]
[318679650,1710346232233,-151.0,0.00019403,2]
[318679651,1710346232242,-151.0,0.00019403,2]
[318679652,1710346232252,-151.0,0.00019403,2]
[318679653,1710346232261,-1345625.30747685,0.00019405,60]
[318679716,1710346238219,-278.42152,0.00019405,60]
[318679717,1710346238231,-2761.18861306,0.00019405,60]
[318679718,1710346238243,-139111.36914175,0.00019405,60]
[318679719,1710346238254,-49999.838436,0.00019405,60]
[318679738,1710346239901,-9638.54327758,0.00019405,60]
[318679744,1710346239965,-1989.03803184,0.00019405,60]
[318679746,1710346239976,-2116.49478037,0.00019405,60]
[318679770,1710346240235,-469.19424105,0.00019405,60]
[318679771,1710346240264,-4069.46653504,0.00019405,60]
[318679772,1710346240278,-6677.2270434,0.00019405,60]
[318679773,1710346240293,-2742.36522796,0.00019405,60]
[318679774,1710346240306,-2989.7958354,0.00019405,60]
[318679902,1710346246285,-18951.66439669,0.00019405,60]
[318679903,1710346246297,-1152.81102501,0.00019405,60]
[318680397,1710347438131,-186.73102555,0.00018031,2]
[318680399,1710347438141,-7072.76897445,0.00018213,2]
[318680406,1710347438199,-2825.3767065,0.00018213,2]
[318680437,1710347440217,-48733.26951913,0.00018213,2]
[318680438,1710347440226,-8101.8029235,0.00018214,2]
[318680576,1710347443348,-11448.78112166,0.00018214,2]
[318680579,1710347443360,-4240.37095543,0.00018214,2]
[318680581,1710347443372,-6704.83546419,0.00018214,2]
[318680583,1710347443384,-37159.92229453,0.00018214,2]
[318680585,1710347443395,-3790.32782118,0.00018214,2]
[318680587,1710347443407,-1373.97772381,0.00018214,2]
[318680590,1710347443418,-1924.0,0.00018214,2]
[318680731,1710347447265,-534.44007195,0.00018214,2]
[318680739,1710347447329,-639.3411089,0.00018214,2]
[318680879,1710347853374,183.33828526,0.00015422,2]
[318680880,1710347946367,9909.29980757,0.00015268,2]
[318680881,1710347960843,10146.4053309,0.00014639,2]
[318680882,1710347966418,9909.29980757,0.00015268,2]
[318680883,1710347981136,2903.545257,0.00014523,2]
[318680884,1710347986375,5162.74519974,0.00015115,2]
[318680885,1710348002388,5162.74519974,0.00015115,2]
[318680886,1710348004446,2116.20898632,0.00015499,2]
[318680887,1710348006253,644.67484635,0.00015499,2]
[318680888,1710348006714,558.67605724,0.00015499,2]
[318680889,1710348020438,5162.74519974,0.00015115,2]
[318680890,1710348025175,1475.16550336,0.00015499,2]
[318680891,1710348027836,184.69472733,0.00015499,2]
[318680892,1710348033481,704.36144243,0.00015499,2]
[318680893,1710348035043,802.34419577,0.00015499,2]
[318680894,1710348035211,528.93081481,0.00015499,2]
[318680895,1710348037012,404.72362458,0.00015499,2]
[318680896,1710348044403,5162.74519974,0.00015344,2]
[318680897,1710348045572,155.11944197,0.00015499,2]
[318680898,1710348046200,290.68098017,0.00015499,2]
[318680899,1710348047686,212.15239579,0.00015499,2]
[318680900,1710348055601,186.78192849,0.00015499,2]
[318680901,1710348055853,539.4768935,0.00015499,2]
[318680902,1710348062434,5162.74519974,0.00015344,2]
[318680903,1710348082393,5162.74519974,0.00015344,2]
[318680904,1710348086074,308.2187328,0.00014703,2]
[318680905,1710348102422,5162.74519974,0.00015191,2]
[318680906,1710348122384,5162.74519974,0.00015191,2]
[318680907,1710348127710,15265.62274168,0.0001519,2]
[318680908,1710348142412,5162.74519974,0.00015191,2]
[318680909,1710348160479,5162.74519974,0.00015191,2]
[318680910,1710348176394,3103.72662921,0.00015038,2]
[318680929,1710348585174,183.33828525,0.00015481,2]
[318680956,1710348632281,-204.80125661,0.00015563,2]
[318680957,1710348632291,-558.67605724,0.00015564,2]
[318680958,1710348632303,-508.56775794,0.00015565,2]
[318681007,1710348638285,-1475.16550336,0.00015563,2]
[318681009,1710348638295,-99.93449664,0.00015565,2]
[318681011,1710348638306,-193.84194119,0.00015565,2]
[318681013,1710348638315,-528.93081481,0.00015565,2]
[318681015,1710348638324,-290.68098017,0.00015566,2]
[318681017,1710348638333,-155.12099438,0.00015566,2]
[318681019,1710348638342,-186.78192849,0.00015566,2]
[318681021,1710348638354,-2519.47580146,0.00015566,2]
[318681189,1710348640319,-3985.29999996,0.00015566,2]
[318681509,1710348643425,-704.36144243,0.00015564,2]
[318681511,1710348643435,-4787.21712373,0.00015566,2]
[318681513,1710348643447,-1204.10622777,0.00015566,2]
[318681893,1710348647482,-653.8259142,0.00015566,2]
[318681929,1710349036860,795.9915189,0.00015119,2]
[318681930,1710349079717,24900.0,0.00015322,2]
[318682002,1710349832540,-836.49022057,0.00015546,2]
[318682003,1710349832550,-186.78192849,0.00015547,2]
[318682004,1710349832559,-1475.16550336,0.00015547,2]
[318682005,1710349832568,-704.36144243,0.00015548,2]
[318682006,1710349832578,-605.990216,0.00016694,2]
[318682007,1710349832588,-620.83850744,0.00017105,2]
[318682008,1710349832598,-2000.0,0.00017559,2]
[318682009,1710349832607,-2000.0,0.00017666,2]
[318682010,1710349832617,-300.0,0.00017679,2]
[318682011,1710349832629,-153.0,0.000177,2]
[318682012,1710349832638,-2000.0,0.00017774,2]
[318682013,1710349832649,-153.0,0.00017781,2]
[318682014,1710349832662,-153.0,0.00017781,2]
[318682015,1710349832674,-153.0,0.00017781,2]
[318682016,1710349832685,-201.085777,0.00017781,2]
[318682017,1710349832694,-201.085777,0.00017781,2]
[318682018,1710349832704,-153.0,0.00017781,2]
[318682019,1710349832714,-201.085777,0.00017781,2]
[318682020,1710349832724,-153.0,0.00017781,2]
[318682021,1710349832735,-153.0,0.00017781,2]
[318682022,1710349832745,-201.085777,0.00017781,2]
[318682023,1710349832755,-153.0,0.00017781,2]
[318682024,1710349832765,-153.0,0.00017781,2]
[318682025,1710349832774,-153.0,0.00017781,2]
[318682026,1710349832784,-201.085777,0.00017781,2]
[318682027,1710349832794,-201.085777,0.00017781,2]
[318682028,1710349832803,-201.085777,0.00017781,2]
[318682029,1710349832812,-153.0,0.00017781,2]
[318682030,1710349832822,-201.085777,0.00017781,2]
[318682031,1710349832833,-153.0,0.00017781,2]
[318682032,1710349832842,-201.085777,0.00017781,2]
[318682033,1710349832852,-201.085777,0.00017781,2]
[318682034,1710349832862,-201.085777,0.000178,2]
[318682035,1710349832871,-153.0,0.000178,2]
[318682036,1710349832880,-153.0,0.000178,2]
[318682037,1710349832890,-201.085777,0.000178,2]
[318682038,1710349832899,-201.085777,0.000178,2]
[318682039,1710349832909,-201.085777,0.000178,2]
[318682040,1710349832918,-153.651142,0.00017856,2]
[318682041,1710349832928,-153.0,0.00017856,2]
[318682042,1710349832938,-201.085777,0.00017856,2]
[318682043,1710349832947,-153.0,0.00017856,2]
[318682044,1710349832956,-201.085777,0.00017856,2]
[318682045,1710349832969,-153.0,0.00017856,2]
[318682046,1710349832979,-153.0,0.00017856,2]
[318682047,1710349832989,-153.0,0.00017856,2]
[318682048,1710349832999,-153.0,0.00017856,2]
[318682049,1710349833009,-201.085777,0.00017856,2]
[318682050,1710349833019,-153.0,0.00017856,2]
[318682051,1710349833028,-153.0,0.00017856,2]
[318682052,1710349833038,-153.0,0.00017856,2]
[318682053,1710349833047,-153.0,0.00017856,2]
[318682054,1710349833057,-153.0,0.00017856,2]
[318682055,1710349833066,-153.0,0.00017856,2]
[318682056,1710349833076,-2000.0,0.00017882,2]
[318682057,1710349833090,-796.00128336,0.00017899,2]
[318682058,1710349833101,-500.0,0.00017946,2]
[318682059,1710349833110,-24900.0,0.00017946,2]
[318682060,1710349833121,-250.0,0.00017946,2]
[318682061,1710349833132,-620.04192537,0.0001796,2]
[318682062,1710349833142,-2000.0,0.00017989,2]
[318682063,1710349833152,-402.89113933,0.00017996,2]
[318682064,1710349833162,-500.0,0.00017997,2]
[318682065,1710349833172,-500.0,0.00017998,2]
[318682066,1710349833182,-500.0,0.00017998,2]
[318682067,1710349833192,-245.13270181,0.00017998,2]
[318682068,1710349833202,-8473.5,0.00017998,2]
[318682069,1710349833211,-8473.5,0.00017998,2]
[318682070,1710349833222,-500.0,0.00017998,2]
[318682071,1710349833232,-598.3856596,0.00017998,2]
[318682072,1710349833243,-500.0,0.00017999,2]
[318682073,1710349833254,-500.0,0.00017999,2]
[318682074,1710349833264,-500.0,0.00017999,2]
[318682075,1710349833276,-500.0,0.00017999,2]
[318682076,1710349833287,-500.0,0.00017999,2]
[318682077,1710349833298,-500.0,0.00017999,2]
[318682078,1710349833308,-500.0,0.00017999,2]
[318682079,1710349833319,-500.0,0.00017999,2]
[318682080,1710349833329,-500.44018173,0.00017999,2]
[318682081,1710349833343,-500.87571254,0.00017999,2]
[318682082,1710349833352,-500.0,0.00017999,2]
[318682083,1710349833362,-501.22375427,0.00017999,2]
[318682084,1710349833372,-500.0,0.00017999,2]
[318682085,1710349833381,-500.0,0.00017999,2]
[318682086,1710349833391,-500.0,0.00017999,2]
[318682087,1710349833400,-500.0,0.00017999,2]
[318682088,1710349833410,-615.40950097,0.00017999,2]
[318682089,1710349833419,-500.57300094,0.00017999,2]
[318682090,1710349833429,-500.0,0.00017999,2]
[318682091,1710349833438,-500.63533299,0.00017999,2]
[318682092,1710349833447,-493.58811233,0.00017999,2]
[318682093,1710349833456,-500.0,0.00017999,2]
[318682094,1710349833466,-500.0,0.00017999,2]
[318682095,1710349833476,-500.0,0.00017999,2]
[318682096,1710349833486,-530.16830718,0.00017999,2]
[318682097,1710349833495,-286.48897601,0.00017999,2]
[318682098,1710349833506,-500.0,0.00017999,2]
[318682099,1710349833515,-500.0,0.00017999,2]
[318682100,1710349833525,-501.43640139,0.00017999,2]
[318682101,1710349833534,-423.61688521,0.00017999,2]
[318682102,1710349833543,-531.37,0.00017999,2]
[318682103,1710349833553,-531.37,0.00017999,2]
[318682104,1710349833562,-502.29718766,0.00017999,2]
[318682105,1710349833571,-500.0,0.00017999,2]
[318682106,1710349833581,-500.0,0.00017999,2]
[318682107,1710349833593,-500.0,0.00017999,2]
[318682108,1710349833603,-500.0,0.00017999,2]
[318682109,1710349833612,-493.17507206,0.00017999,2]
[318682110,1710349833622,-500.0,0.00017999,2]
[318682111,1710349833631,-500.0,0.00017999,2]
[318682112,1710349833641,-266.5844942,0.00017999,2]
[318682113,1710349833650,-500.0,0.00017999,2]
[318682114,1710349833661,-500.0,0.00017999,2]
[318682115,1710349833671,-151.0,0.00017999,2]
[318682116,1710349833680,-151.0,0.00017999,2]
[318682117,1710349833689,-502.68039985,0.00017999,2]
[318682118,1710349833699,-500.0,0.00017999,2]
[318682119,1710349833709,-500.0,0.00017999,2]
[318682120,1710349833719,-491.51760649,0.00017999,2]
[318682121,1710349833728,-500.0,0.00017999,2]
[318682122,1710349833739,-500.0,0.00017999,2]
[318682123,1710349833748,-500.0,0.00017999,2]
[318682124,1710349833759,-554.67288485,0.00017999,2]
[318682125,1710349833768,-645.37070961,0.00017999,2]
[318682126,1710349833778,-437.68855591,0.00017999,2]
[318682127,1710349833786,-500.0,0.00017999,2]
[318682128,1710349833795,-500.65082773,0.00017999,2]
[318682129,1710349833805,-500.0,0.00017999,2]
[318682130,1710349833814,-500.0,0.00017999,2]
[318682131,1710349833823,-1855.57,0.00017999,2]
[318682132,1710349833835,-1855.57,0.00017999,2]
[318682133,1710349833844,-500.0,0.00017999,2]
[318682134,1710349833854,-500.0,0.00017999,2]
[318682135,1710349833950,-232.49129884,0.00017999,2]
[318682136,1710349833960,-500.0,0.00017999,2]
[318682137,1710349833970,-500.0,0.00017999,2]
[318682138,1710349833979,-500.0,0.00017999,2]
[318682139,1710349833988,-502.9111675,0.00017999,2]
[318682140,1710349833998,-500.0,0.00017999,2]
[318682141,1710349834008,-500.0,0.00017999,2]
[318682142,1710349834017,-500.0,0.00017999,2]
[318682143,1710349834026,-500.0,0.00017999,2]
[318682144,1710349834035,-500.0,0.00017999,2]
[318682145,1710349834044,-500.42042232,0.00017999,2]
[318682146,1710349834054,-500.0,0.00017999,2]
[318682147,1710349834063,-500.0,0.00017999,2]
[318682148,1710349834072,-500.0,0.00017999,2]
[318682149,1710349834082,-500.0,0.00017999,2]
[318682150,1710349834092,-1491.53,0.00017999,2]
[318682151,1710349834102,-1491.53,0.00017999,2]
[318682152,1710349834111,-500.0,0.00017999,2]
[318682153,1710349834121,-500.0,0.00017999,2]
[318682154,1710349834130,-627.82,0.00017999,2]
[318682155,1710349834140,-627.82,0.00017999,2]
[318682156,1710349834149,-1207.91,0.00017999,2]
[318682157,1710349834159,-1207.91,0.00017999,2]
[318682158,1710349834169,-500.0,0.00017999,2]
[318682159,1710349834179,-500.0,0.00017999,2]
[318682160,1710349834189,-500.0,0.00017999,2]
[318682161,1710349834198,-500.0,0.00017999,2]
[318682162,1710349834207,-500.0,0.00017999,2]
[318682163,1710349834217,-500.0,0.00017999,2]
[318682164,1710349834226,-500.0,0.00017999,2]
[318682165,1710349834235,-624.0422875,0.00017999,2]
[318682166,1710349834245,-500.0,0.00017999,2]
[318682167,1710349834255,-500.0,0.00017999,2]
[318682168,1710349834264,-500.0,0.00017999,2]
[318682169,1710349834273,-500.0,0.00017999,2]
[318682170,1710349834283,-500.0,0.00017999,2]
[318682171,1710349834292,-295.97236771,0.00017999,2]
[318682172,1710349834301,-500.0,0.00017999,2]
[318682173,1710349834310,-500.0,0.00017999,2]
[318682174,1710349834319,-161.18566081,0.00017999,2]
[318682175,1710349834328,-500.0,0.00017999,2]
[318682176,1710349834339,-500.0,0.00017999,2]
[318682177,1710349834348,-4615.92740705,0.00017999,2]
[318682178,1710349834405,-0.330949,0.00017999,2]
[318682179,1710349834417,-616.3095412,0.00017999,2]
[318682180,1710349834455,-3240.93210275,0.00017999,2]
[318682181,1710349834465,-500.0,0.00017999,2]
[318682182,1710349834475,-500.0,0.00017999,2]
[318682183,1710349834484,-500.0,0.00017999,2]
[318682184,1710349834493,-500.0,0.00017999,2]
[318682185,1710349834502,-502.39425469,0.00017999,2]
[318682186,1710349834511,-4137.5329175,0.00018026,2]
[318682263,1710349838535,-734.1895399,0.00018026,2]
[318682264,1710349838546,-2182.319181,0.00018026,2]
[318682265,1710349838558,-32033.56849499,0.00018026,2]
[318682266,1710349838566,-500.0,0.00018027,2]
[318682267,1710349838575,-500.0,0.00018027,2]
[318682268,1710349838584,-531.37,0.00018027,2]
[318682269,1710349838595,-500.0,0.00018027,2]
[318682270,1710349838604,-500.0,0.00018027,2]
[318682271,1710349838613,-500.0,0.00018027,2]
[318682272,1710349838621,-239.9652503,0.00018027,2]
[318682273,1710349838631,-500.0,0.00018027,2]
[318682274,1710349838640,-500.0,0.00018027,2]
[318682275,1710349838650,-1855.57,0.00018027,2]
[318682276,1710349838660,-500.0,0.00018027,2]
[318682277,1710349838670,-500.0,0.00018027,2]
[318682278,1710349838678,-500.0,0.00018027,2]
[318682279,1710349838688,-500.0,0.00018027,2]
[318682280,1710349838697,-500.0,0.00018027,2]
[318682281,1710349838706,-1491.53,0.00018027,2]
[318682282,1710349838716,-500.0,0.00018027,2]
[318682283,1710349838725,-93.28099418,0.00018027,2]
[318682493,1710349843062,-534.53900582,0.00018027,2]
[318682495,1710349843072,-200.19121885,0.00018027,2]
[318682498,1710349843085,-1007.71878115,0.00018027,2]
[318682499,1710349843094,-500.0,0.00018027,2]
[318682500,1710349843104,-500.0,0.00018027,2]
[318682502,1710349843112,-157.97311927,0.00018027,2]
[318682504,1710349843124,-342.02688073,0.00018027,2]
[318682506,1710349843133,-500.0,0.00018027,2]
[318682508,1710349843142,-500.0,0.00018027,2]
[318682510,1710349843152,-500.0,0.00018027,2]
[318682511,1710349843161,-309.47329727,0.00018027,2]
[318682513,1710349843171,-500.0,0.00018027,2]
[318682514,1710349843180,-500.0,0.00018028,2]
[318682515,1710349843189,-500.0,0.00018028,2]
[318682517,1710349843198,-500.0,0.00018029,2]
[318682519,1710349843207,-500.0,0.00018029,2]
[318682520,1710349843216,-531.37,0.00018029,2]
[318682521,1710349843226,-116.79385131,0.00018029,2]
[318682539,1710349843586,-383.20614869,0.00018029,2]
[318682540,1710349843598,-107.23514882,0.00018029,2]
[318682541,1710349843609,-392.76485118,0.00018029,2]
[318682542,1710349843618,-500.0,0.00018029,2]
[318682543,1710349843630,-500.0,0.00018029,2]
[318682544,1710349843639,-500.0,0.00018029,2]
[318682545,1710349843648,-1855.57,0.00018029,2]
[318682546,1710349843659,-500.0,0.00018029,2]
[318682547,1710349843670,-256.19967196,0.00018029,2]
[318682548,1710349843679,-500.0,0.00018029,2]
[318682549,1710349843689,-500.0,0.00018029,2]
[318682550,1710349843699,-362.67591184,0.00018029,2]
[318682551,1710349843712,-137.32408816,0.00018029,2]
[318682552,1710349843722,-1203.27610302,0.00018029,2]
[318682553,1710349843734,-288.25389698,0.00018029,2]
[318682554,1710349843743,-500.0,0.00018029,2]
[318682555,1710349843753,-627.82,0.00018029,2]
[318682556,1710349843762,-1207.91,0.00018029,2]
[318682557,1710349843771,-500.0,0.00018029,2]
[318682558,1710349843780,-149.52475561,0.00018029,2]
[318682559,1710349843792,-350.47524439,0.00018029,2]
[318682560,1710349843801,-500.0,0.00018029,2]
[318682561,1710349843810,-500.0,0.00018029,2]
[318682562,1710349843819,-500.0,0.00018029,2]
[318682563,1710349843828,-500.0,0.00018029,2]
[318682564,1710349843837,-500.0,0.00018029,2]
[318682565,1710349843848,-3467.56125917,0.00018029,2]
[318682576,1710349870791,263.22406606,0.00019406,7]
[318682580,1710350315931,250.0,0.00019399,14]
[318682581,1710350320663,142.75593394,0.00019399,21]
[318682582,1710350320684,107.24406606,0.00019399,21]
[318682583,1710350356599,1741.65593394,0.0001868,9]
[318682584,1710350356619,200.0,0.0001868,9]
[318682585,1710350356639,332.45,0.0001868,9]
[318682589,1710350568802,-186.78192849,0.0001691,2]
[318682590,1710350568824,-404.72362458,0.00016911,2]
[318682591,1710350568848,-155.12099438,0.00016912,2]
[318682592,1710350568873,-704.36144243,0.00016912,2]
[318682593,1710350568914,-290.68098017,0.00016913,2]
[318682594,1710350568943,-155.12099438,0.00016913,2]
[318682595,1710350568973,-15265.62274168,0.00016945,2]
[318682596,1710350568999,-300.0,0.00016946,2]
[318682597,1710350569028,-2000.0,0.00017349,2]
[318682598,1710350569054,-183.33828525,0.00017428,2]
[318682599,1710350569078,-2000.0,0.00017528,2]
[318682600,1710350569105,-2000.0,0.00017706,2]
[318682601,1710350569134,-2000.0,0.00017885,2]
[318682602,1710350569162,-153.0,0.000179,2]
[318682603,1710350569188,-153.0,0.000179,2]
[318682604,1710350569215,-636.80102668,0.00017923,2]
[318682605,1710350569242,-500.0,0.00017946,2]
[318682606,1710350569268,-24900.0,0.00017946,2]
[318682607,1710350569415,-461.201962,0.00017946,2]
[318682608,1710350569439,-500.0,0.00017997,2]
[318682609,1710350569462,-500.0,0.00017998,2]
[318682610,1710350569484,-500.0,0.00017998,2]
[318682611,1710350569506,-500.0,0.00017998,2]
[318682612,1710350569528,-500.0,0.00017998,2]
[318682613,1710350569550,-500.0,0.00017998,2]
[318682614,1710350569571,-500.0,0.00017998,2]
[318682615,1710350569599,-500.0,0.00017998,2]
[318682616,1710350569622,-504.08416798,0.00017998,2]
[318682617,1710350569644,-500.0,0.00017998,2]
[318682618,1710350569665,-500.0,0.00017998,2]
[318682619,1710350569686,-1242.94,0.00017998,2]
[318682620,1710350569709,-500.0,0.00017998,2]
[318682621,1710350569731,-1242.94,0.00017998,2]
[318682622,1710350569753,-500.0,0.00017998,2]
[318682623,1710350569775,-500.0,0.00017998,2]
[318682624,1710350569798,-500.0,0.00017998,2]
[318682625,1710350569820,-500.0,0.00017998,2]
[318682626,1710350569843,-500.0,0.00017998,2]
[318682627,1710350569870,-340.56974221,0.00017998,2]
[318682628,1710350569893,-500.0,0.00017999,2]
[318682629,1710350569916,-369.36478929,0.00017999,2]
[318682630,1710350569941,-500.0,0.00017999,2]
[318682631,1710350569967,-500.0,0.00017999,2]
[318682632,1710350569989,-500.0,0.00017999,2]
[318682633,1710350570013,-500.0,0.00017999,2]
[318682634,1710350570036,-500.0,0.00017999,2]
[318682635,1710350570059,-500.0,0.00017999,2]
[318682636,1710350570082,-500.0,0.00017999,2]
[318682637,1710350570105,-500.0,0.00017999,2]
[318682638,1710350570128,-500.0,0.00017999,2]
[318682639,1710350570150,-500.0,0.00017999,2]
[318682640,1710350570172,-502.08965755,0.00017999,2]
[318682641,1710350570198,-500.0,0.00017999,2]
[318682642,1710350570220,-500.0,0.00017999,2]
[318682643,1710350570243,-500.0,0.00017999,2]
[318682644,1710350570265,-500.0,0.00017999,2]
[318682645,1710350570287,-500.0,0.00017999,2]
[318682646,1710350570311,-500.0,0.00017999,2]
[318682647,1710350570333,-500.0,0.00017999,2]
[318682648,1710350570355,-500.0,0.00017999,2]
[318682649,1710350570378,-500.0,0.00017999,2]
[318682650,1710350570401,-500.0,0.00017999,2]
[318682651,1710350570422,-500.0,0.00017999,2]
[318682652,1710350570445,-500.0,0.00017999,2]
[318682653,1710350570469,-500.0,0.00017999,2]
[318682654,1710350570491,-500.0,0.00017999,2]
[318682655,1710350570513,-1242.94,0.00017999,2]
[318682656,1710350570535,-500.0,0.00017999,2]
[318682657,1710350570557,-500.0,0.00017999,2]
[318682658,1710350570578,-500.0,0.00017999,2]
[318682659,1710350570601,-277.881654,0.00018,2]
[318682660,1710350570623,-151.0,0.00018,2]
[318682661,1710350570645,-224.323332,0.00018,2]
[318682662,1710350570668,-412.3534582,0.00018,2]
[318682663,1710350570690,-153.0,0.00018,2]
[318682664,1710350570712,-32573.00844449,0.00018022,2]
[318682665,1710350570734,-501.33189783,0.00018023,2]
[318682666,1710350570756,-500.0,0.00018023,2]
[318682667,1710350570779,-500.0,0.00018023,2]
[318682668,1710350570800,-500.0,0.00018023,2]
[318682669,1710350570822,-500.0,0.00018023,2]
[318682670,1710350570843,-500.0,0.00018023,2]
[318682671,1710350570865,-500.0,0.00018023,2]
[318682672,1710350570891,-500.0,0.00018023,2]
[318682673,1710350570913,-7269.83,0.00018023,2]
[318682674,1710350570935,-7269.83,0.00018023,2]
[318682675,1710350570957,-523.18,0.00018023,2]
[318682676,1710350570979,-523.18,0.00018023,2]
[318682677,1710350571006,-151.0,0.00018023,2]
[318682678,1710350571034,-500.0,0.00018023,2]
[318682679,1710350571055,-317.04693058,0.00018023,2]
[318682680,1710350571079,-1546.31,0.00018023,2]
[318682681,1710350571101,-1546.31,0.00018023,2]
[318682682,1710350571123,-500.0,0.00018025,2]
[318682683,1710350571145,-500.0,0.00018025,2]
[318682684,1710350571172,-500.0,0.00018025,2]
[318682685,1710350571195,-500.0,0.00018025,2]
[318682686,1710350571218,-1242.94,0.00018025,2]
[318682687,1710350571240,-226.16291975,0.00018025,2]
[318682688,1710350571263,-500.0,0.00018025,2]
[318682689,1710350571285,-500.0,0.00018025,2]
[318682690,1710350571307,-500.0,0.00018027,2]
[318682691,1710350571331,-500.0,0.00018027,2]
[318682692,1710350571354,-500.0,0.00018027,2]
[318682693,1710350571376,-500.0,0.00018027,2]
[318682694,1710350571398,-500.0,0.00018027,2]
[318682695,1710350571420,-500.0,0.00018027,2]
[318682696,1710350571514,-479.48585433,0.00018027,2]
[318682697,1710350571536,-500.0,0.00018027,2]
[318682698,1710350571559,-332.559793,0.00018028,2]
[318682699,1710350571583,-332.559793,0.00018028,2]
[318682700,1710350571605,-500.0,0.00018028,2]
[318682701,1710350571627,-151.0,0.00018028,2]
[318682702,1710350571649,-500.0,0.00018028,2]
[318682703,1710350571672,-500.0,0.00018028,2]
[318682704,1710350571695,-500.0,0.00018028,2]
[318682705,1710350571718,-151.0,0.00018028,2]
[318682706,1710350571740,-1242.94,0.00018028,2]
[318682707,1710350571762,-500.0,0.00018028,2]
[318682708,1710350571784,-500.0,0.00018028,2]
[318682709,1710350571806,-500.0,0.00018029,2]
[318682710,1710350571829,-680.40080372,0.00018029,2]
[318682711,1710350571852,-500.0,0.00018029,2]
[318682712,1710350571875,-500.0,0.00018029,2]
[318682713,1710350571898,-500.0,0.00018029,2]
[318682714,1710350571921,-439.30160896,0.00018029,2]
[318682715,1710350571944,-540.96040326,0.00018029,2]
[318682716,1710350571969,-500.0,0.00018029,2]
[318682717,1710350571992,-500.0,0.00018029,2]